[Event "Fagernes GM-A 2019"]
[Site "Fagernes"]
[Date "2019.04.18"]
[Round "1"]
[White "Vestby-Ellingsen, Mads"]
[Black "Machlik, Monika"]
[Result "1-0"]
[ECO "A28"]
[WhiteElo "2333"]
[BlackElo "2059"]
[Annotator "NA"]
[PlyCount "247"]
[EventDate "2019.04.14"]
[EventType "tourn"]
[EventCountry "NOR"]
[SourceTitle "playchess.com"]
[Source "ChessBase"]
[SourceQuality "1"]
[TimeControl "40/7200:3600"]

1. c4 {[%emt 0:00:05]} e5 {[%emt 0:01:44]} 2. Nc3 {[%emt 0:01:23]} Nf6 {[%emt 0:00:29]} 3. Nf3 {[%emt 0:00:15]} Nc6 {[%emt 0:00:08]} 4. e4 {[%emt 0:00:17]} Bb4 {[%emt 0:03:58]} 5. d3 {[%emt 0:00:18]} h6 {[%emt 0:10:03]} 6. Be2 {[%emt 0:01:25]} d6 {[%emt 0:02:02]} 7. a3 {[%emt 0:00:40]} Bxc3+ {[%emt 0:02:52]} 8. bxc3 {[%emt 0:00:11]} O-O {[%emt 0:01:31]} 9. O-O {[%emt 0:00:23]} Qe7 {[%emt 0:14:47]} 10. Ne1 {[%emt 0:02:15]} Ne8 {[%emt 0:11:00]} 11. Rb1 {[%emt 0:03:08]} Nd8 {[%emt 0:06:17]} 12. f4 {[%emt 0:04:01]} exf4 {[%emt 0:03:46]} 13. Bxf4 {[%emt 0:00:26]} f5 {[%emt 0:04:16]} 14. exf5 {[%emt 0:03:33]} Bxf5 {[%emt 0:01:15]} 15. Nc2 {[%emt 0:00:43]} Ne6 {[%emt 0:09:11]} 16. Bg3 {[%emt 0:08:42]} c6 {[%emt 0:05:36]} 17. Qd2 {[%emt 0:05:40]} Nc5 {[%emt 0:14:08]} 18. Nd4 {[%emt 0:19:09]} Bg6 {[%emt 0:02:57]} 19. Rxf8+ {[%emt 0:08:43]} Qxf8 {[%emt 0:00:23]} 20. Rf1 {[%emt 0:00:36]} Qe7 {[%emt 0:01:49]} 21. Nf5 {[%emt 0:02:29]} Bxf5 {[%emt 0:02:29]} 22. Rxf5 {[%emt 0:00:24]} Nf6 {[%emt 0:02:13]} 23. h3 {[%emt 0:03:00]} Re8 {[%emt 0:01:33]} 24. Bf1 {[%emt 0:01:41]} Qe6 {[%emt 0:03:47]} 25. Qf2 {[%emt 0:03:04]} Nce4 {[%emt 0:05:13]} 26. Rxf6 {[%emt 0:02:27]} Nxf6 {[%emt 0:00:43]} 27. Qxa7 {[%emt 0:00:16]} Nh5 {[%emt 0:01:18]} 28. Bf2 {[%emt 0:03:26]} Qf7 {[%emt 0:00:10]} 29. Qd4 {[%emt 0:02:14]} Qf4 {[%emt 0:01:06]} 30. g3 {[%emt 0:14:56]} Qxd4 {[%emt 0:00:06]} 31. cxd4 {[%emt 0:00:07]} Kf7 {[%emt 0:01:25]} 32. a4 {[%emt 0:05:01]} Nf6 {[%emt 0:00:02]} 33. a5 {[%emt 0:00:10]} Ng8 {[%emt 0:01:06]} 34. g4 {[%emt 0:02:11]} Nf6 {[%emt 0:00:15]} 35. Bg3 {[%emt 0:01:53]} Ke7 {[%emt 0:00:02]} 36. Be2 {[%emt 0:00:48]} Ra8 {[%emt 0:00:02]} 37. Be1 {[%emt 0:00:21]} Kd7 {[%emt 0:00:01]} 38. Kf2 {[%emt 0:05:24]} Re8 {[%emt 0:00:01]} 39. Bd2 {[%emt 0:00:34]} Rf8 {[%emt 0:00:03]} 40. Kg3 {[%emt 0:01:04]} Re8 {[%emt 0:00:06]} 41. Bf3 {[%emt 1:00:20]} Rf8 {[%emt 1:00:01]} 42. h4 {[%emt 0:01:14]} Ng8 {[%emt 0:00:00]} 43. Be3 {[%emt 0:00:00]} Ne7 {[%emt 0:00:00]} 44. h5 {[%emt 0:00:00]} Ke6 {[%emt 0:00:00]} 45. Bd2 {[%emt 0:00:00]} Ra8 {[%emt 0:00:00]} 46. Bc3 {[%emt 0:00:00]} d5 {[%emt 0:00:00]} 47. Bd2 {[%emt 0:00:00]} Ng8 {[%emt 0:00:00]} 48. Bb4 {[%emt 0:00:00]} Nf6 {[%emt 0:00:00]} 49. Bd2 {[%emt 0:00:00]} Nh7 {[%emt 0:00:00]} 50. Bb4 {[%emt 0:00:00]} Ng5 {[%emt 0:00:00]} 51. Bg2 {[%emt 0:00:00]} Rd8 {[%emt 0:00:00]} 52. Bc3 {[%emt 0:00:00]} Ra8 {[%emt 0:00:00]} 53. Bb4 {[%emt 0:00:00]} Nh7 {[%emt 0:00:00]} 54. Bf3 {[%emt 0:00:00]} Nf6 {[%emt 0:00:00]} 55. Bd2 {[%emt 0:00:00]} Ra6 {[%emt 0:00:00]} 56. Kf2 {[%emt 0:00:00]} Nh7 {[%emt 0:00:00]} 57. Ke2 {[%emt 0:00:00]} Ng5 {[%emt 0:00:00]} 58. Bg2 {[%emt 0:00:00]} Ra8 {[%emt 0:00:00]} 59. Bb4 {[%emt 0:00:00]} Nf7 {[%emt 0:00:00]} 60. Ke3 {[%emt 0:00:00]} Nd6 {[%emt 0:00:00]} 61. Bf1 {[%emt 0:00:00]} Re8 {[%emt 0:00:00]} 62. Be2 {[%emt 0:00:00]} Kf6+ {[%emt 0:00:00]} 63. Kf2 {[%emt 0:00:00]} Nf7 {[%emt 0:00:00]} 64. Bf3 {[%emt 0:00:00]} Rd8 {[%emt 0:00:00]} 65. Bc3 {[%emt 0:00:00]} Ng5 {[%emt 0:00:00]} 66. Bg2 {[%emt 0:00:00]} Ke6 {[%emt 0:00:00]} 67. Ke3 {[%emt 0:00:00]} Ra8 {[%emt 0:00:00]} 68. Kf2 {[%emt 0:00:00]} Re8 {[%emt 0:00:00]} 69. Ke3 {[%emt 0:00:00]} Ra8 {[%emt 0:00:00]} 70. Kf2 {[%emt 0:00:00]} Ra6 {[%emt 0:00:00]} 71. Ke3 {[%emt 0:00:00]} Ra8 {[%emt 0:00:00]} 72. Kf2 {[%emt 0:00:00]} Nf7 {[%emt 0:00:00]} 73. Ke3 {[%emt 0:00:00]} Nd6 {[%emt 0:00:00]} 74. Bf1 {[%emt 0:00:01]} Ra6 {[%emt 0:00:00]} 75. Be2 {[%emt 0:00:13]} Nf7 {[%emt 0:00:00]} 76. Bb4 {[%emt 0:00:05]} Nd6 {[%emt 0:00:00]} 77. Bc3 {[%emt 0:00:05]} Ne8 {[%emt 0:00:00]} 78. Bb4 {[%emt 0:00:04]} Nf6 {[%emt 0:00:00]} 79. Bf8 {[%emt 0:00:28]} Kf7 {[%emt 0:00:00]} 80. Bb4 {[%emt 0:00:02]} Ke6 {[%emt 0:00:00]} 81. Bf8 {[%emt 0:00:02]} Ne8 {[%emt 0:00:00]} 82. Bb4 {[%emt 0:00:07]} b6 {[%emt 0:00:00]} 83. axb6 {[%emt 0:00:05]} Rxb6 {[%emt 0:00:00]} 84. Bd2 {[%emt 0:00:16]} Rb3 {[%emt 0:00:00]} 85. Kf2 {[%emt 0:00:13]} Nd6 {[%emt 0:00:00]} 86. Bf4 {[%emt 0:00:28]} Rb4 {[%emt 0:00:00]} 87. Be5 {[%emt 0:00:08]} Ne8 {[%emt 0:00:00]} 88. Bf4 {[%emt 0:00:19]} Nf6 {[%emt 0:00:00]} 89. Be5 {[%emt 0:00:13]} Rb2 {[%emt 0:00:00]} 90. Ke3 {[%emt 0:00:08]} Rb1 {[%emt 0:00:00]} 91. Kf2 {[%emt 0:00:02]} Ra1 {[%emt 0:00:00]} 92. Ke3 {[%emt 0:00:22]} Ra2 {[%emt 0:00:00]} 93. Bf3 {[%emt 0:00:11]} Ra3 {[%emt 0:00:00]} 94. Ke2 {[%emt 0:00:05]} Ra7 {[%emt 0:00:00]} 95. Ke3 {[%emt 0:00:02]} Ra4 {[%emt 0:00:00]} 96. Be2 {[%emt 0:00:20]} Ra7 {[%emt 0:00:00]} 97. Bf3 {[%emt 0:00:01]} Nh7 {[%emt 0:00:00]} 98. Be2 {[%emt 0:00:04]} Ng5 {[%emt 0:00:00]} 99. Bf1 {[%emt 0:00:01]} Ra3 {[%emt 0:00:00]} 100. cxd5+ {[%emt 0:00:12]} cxd5 {[%emt 0:00:00]} 101. Bxg7 {[%emt 0:00:01]} Nf7 {[%emt 0:00:00]} 102. Bf8 {[%emt 0:00:01]} Ra8 {[%emt 0:00:00]} 103. Bb4 {[%emt 0:00:04]} Rb8 {[%emt 0:00:00]} 104. Bd2 {[%emt 0:00:02]} Rg8 {[%emt 0:00:00]} 105. Be2 {[%emt 0:00:01]} Ng5 {[%emt 0:00:00]} 106. Kf4 {[%emt 0:00:01]} Rf8+ {[%emt 0:00:00]} 107. Kg3 {[%emt 0:00:01]} Kf6 {[%emt 0:00:00]} 108. Bf4 {[%emt 0:00:02]} Re8 {[%emt 0:00:00]} 109. Be5+ {[%emt 0:00:02]} Kf7 {[%emt 0:00:06]} 110. Bf1 {[%emt 0:00:02]} Ke6 {[%emt 0:00:00]} 111. Bg7 {[%emt 0:00:02]} Nf7 {[%emt 0:00:00]} 112. g5 {[%emt 0:00:04]} Nxg5 {[%emt 0:00:00]} 113. Bxh6 {[%emt 0:00:01]} Rg8 {[%emt 0:00:00]} 114. Bxg5 {[%emt 0:00:08]} Rxg5+ {[%emt 0:00:00]} 115. Kf4 {[%emt 0:00:01]} Rxh5 {[%emt 0:00:00]} 116. Be2 {[%emt 0:00:00]} Rh8 {[%emt 0:00:00]} 117. Ke3 {[%emt 0:00:01]} Rf8 {[%emt 0:00:00]} 118. Kd2 Kd6 119. Bg4 {[%emt 0:00:01]} Rf4 {[%emt 0:00:00]} 120. Be2 Rxd4 121. Ke3 {[%emt 0:00:01]} Ra4 {[%emt 0:00:00]} 122. Kd2 {[%emt 0:00:01]} Ra5 {[%emt 0:00:00]} 123. Ke3 {[%emt 0:00:00]} Ra7 {[%emt 0:00:00]} 124. Kf2 {[%emt 0:00:05]} 1-0

[Event "Fagernes GM-A 2019"]
[Site "Fagernes"]
[Date "2019.04.18"]
[Round "1"]
[White "Ingebretsen, Jens E"]
[Black "Grover, Sigurd Loe"]
[Result "1-0"]
[ECO "D34"]
[WhiteElo "2300"]
[BlackElo "2020"]
[Annotator "NA"]
[PlyCount "108"]
[EventDate "2019.04.14"]
[EventType "tourn"]
[EventCountry "NOR"]
[SourceTitle "playchess.com"]
[Source "ChessBase"]
[SourceQuality "1"]
[TimeControl "40/7200:3600"]

1. c4 {[%emt 0:00:03]} e6 {[%emt 0:00:34]} 2. g3 {[%emt 0:00:12]} d5 {[%emt 0:00:07]} 3. Bg2 {[%emt 0:00:09]} c5 {[%emt 0:00:24]} 4. cxd5 {[%emt 0:01:33]} exd5 {[%emt 0:00:07]} 5. d4 {[%emt 0:00:20]} Nf6 {[%emt 0:01:21]} 6. Nf3 {[%emt 0:01:29]} Nc6 {[%emt 0:00:17]} 7. O-O {[%emt 0:00:40]} Be7 {[%emt 0:00:14]} 8. Nc3 {[%emt 0:01:09]} O-O {[%emt 0:00:08]} 9. dxc5 {[%emt 0:06:49]} Bxc5 {[%emt 0:00:13]} 10. Bg5 {[%emt 0:01:21]} d4 {[%emt 0:00:06]} 11. Bxf6 {[%emt 0:04:10]} Qxf6 {[%emt 0:00:12]} 12. Ne4 {[%emt 0:00:09]} Qe7 {[%emt 0:00:22]} 13. Nxc5 {[%emt 0:01:01]} Qxc5 {[%emt 0:00:06]} 14. Qd2 {[%emt 0:01:43]} Re8 {[%emt 0:06:22]} 15. Rfd1 {[%emt 0:02:53]} Bf5 {[%emt 0:13:16]} 16. Rac1 {[%emt 0:07:32]} Qb5 {[%emt 0:05:16]} 17. Bf1 {[%emt 0:16:34]} Bg4 {[%emt 0:06:15]} 18. Nxd4 {[%emt 0:08:36]} Nxd4 {[%emt 0:00:32]} 19. Qxd4 {[%emt 0:00:19]} Bxe2 {[%emt 0:00:54]} 20. Rc5 {[%emt 0:05:03]} Qxc5 {[%emt 0:02:08]} 21. Qxc5 {[%emt 0:00:05]} Bxd1 {[%emt 0:00:06]} 22. Qd5 {[%emt 0:00:53]} Bc2 {[%emt 0:13:22]} 23. Qxb7 {[%emt 0:01:35]} Rab8 {[%emt 0:05:23]} 24. Qd7 {[%emt 0:05:39]} Rbd8 {[%emt 0:09:23]} 25. Qc7 {[%emt 0:11:28]} Bf5 {[%emt 0:02:05]} 26. Qa5 {[%emt 0:00:40]} g6 {[%emt 0:00:51]} 27. f3 {[%emt 0:02:39]} Rd1 {[%emt 0:02:57]} 28. Kf2 {[%emt 0:01:47]} Rc8 {[%emt 0:01:29]} 29. Be2 {[%emt 0:01:46]} Rc2 {[%emt 0:02:45]} 30. Ke3 {[%emt 0:05:01]} Rdd2 {[%emt 0:00:28]} 31. Qxd2 {[%emt 0:00:51]} Rxd2 {[%emt 0:00:35]} 32. Kxd2 {[%emt 0:00:06]} Kf8 {[%emt 0:01:20]} 33. Bd3 {[%emt 0:00:31]} Bc8 {[%emt 0:01:43]} 34. Kc3 {[%emt 0:00:30]} Ke7 {[%emt 0:00:22]} 35. Kb4 {[%emt 0:01:03]} Kd6 {[%emt 0:00:35]} 36. f4 {[%emt 0:00:55]} Bb7 {[%emt 0:04:31]} 37. b3 {[%emt 0:02:15]} f6 {[%emt 0:02:15]} 38. Ka5 {[%emt 0:01:41]} Kc5 {[%emt 0:07:53]} 39. Ba6 {[%emt 0:01:16]} Be4 {[%emt 0:05:00]} 40. Bc8 {[%emt 0:02:30]} Bd3 {[%emt 0:02:26]} 41. b4+ {[%emt 1:00:55]} Kd4 {[%emt 1:00:11]} 42. a4 {[%emt 0:00:30]} g5 {[%emt 0:01:05]} 43. fxg5 {[%emt 0:00:28]} fxg5 {[%emt 0:00:07]} 44. b5 {[%emt 0:00:46]} Bc2 {[%emt 0:00:00]} 45. Kb4 {[%emt 0:00:00]} Kd5 {[%emt 0:00:00]} 46. a5 {[%emt 0:00:00]} Kd6 {[%emt 0:00:00]} 47. Bb7 {[%emt 0:00:00]} Kc7 {[%emt 0:00:00]} 48. Bf3 {[%emt 0:00:00]} Bg6 {[%emt 0:00:00]} 49. Kc5 {[%emt 0:00:00]} h5 {[%emt 0:00:00]} 50. b6+ {[%emt 0:00:00]} axb6+ {[%emt 0:00:00]} 51. axb6+ {[%emt 0:00:00]} Kb8 {[%emt 0:07:15]} 52. Kd6 {[%emt 0:00:00]} h4 {[%emt 0:03:01]} 53. g4 {[%emt 0:00:00]} h3 {[%emt 0:00:27]} 54. Ke5 {[%emt 0:00:00]} Bd3 {[%emt 0:00:16]} 1-0

[Event "Fagernes GM-A 2019"]
[Site "Fagernes"]
[Date "2019.04.18"]
[Round "1"]
[White "Efroimski, Marsel"]
[Black "Isha Sharma"]
[Result "1-0"]
[ECO "C13"]
[WhiteElo "2287"]
[BlackElo "1989"]
[Annotator "NA"]
[PlyCount "75"]
[EventDate "2019.04.14"]
[EventType "tourn"]
[EventCountry "NOR"]
[SourceTitle "playchess.com"]
[Source "ChessBase"]
[SourceQuality "1"]
[TimeControl "40/7200:3600"]

1. e4 {[%emt 0:00:01]} e6 {[%emt 0:00:18]} 2. d4 {[%emt 0:00:25]} d5 {[%emt 0:00:13]} 3. Nc3 {[%emt 0:00:07]} Nf6 {[%emt 0:00:31]} 4. Bg5 {[%emt 0:02:21]} dxe4 {[%emt 0:00:34]} 5. Nxe4 {[%emt 0:00:26]} Nbd7 {[%emt 0:00:20]} 6. Nxf6+ {[%emt 0:04:19]} gxf6 {[%emt 0:01:20]} 7. Bh4 {[%emt 0:05:16]} c5 {[%emt 0:07:02]} 8. d5 {[%emt 0:10:25]} Qb6 {[%emt 0:05:33]} 9. dxe6 {[%emt 0:02:29]} fxe6 {[%emt 0:00:25]} 10. Qh5+ {[%emt 0:00:35]} Ke7 {[%emt 0:04:45]} 11. O-O-O {[%emt 0:00:18]} Qb4 {[%emt 0:02:31]} 12. Bg3 {[%emt 0:09:01]} e5 {[%emt 0:06:56]} 13. Nf3 {[%emt 0:02:56]} Bg7 {[%emt 0:07:55]} 14. a3 {[%emt 0:10:27]} Qa4 {[%emt 0:07:07]} 15. Bd3 {[%emt 0:00:24]} c4 {[%emt 0:33:00]} 16. Be4 {[%emt 0:03:27]} c3 {[%emt 0:05:17]} 17. Bd5 {[%emt 0:01:21]} Kd8 {[%emt 0:02:48]} 18. Qf7 {[%emt 0:21:40]} cxb2+ {[%emt 0:04:39]} 19. Kxb2 {[%emt 0:02:27]} Bf8 {[%emt 0:00:51]} 20. Rd3 {[%emt 0:04:42]} Bc5 {[%emt 0:17:35]} 21. Rhd1 {[%emt 0:08:25]} Re8 {[%emt 0:03:38]} 22. Be6 {[%emt 0:08:57]} Rxe6 {[%emt 0:00:12]} 23. Qxe6 {[%emt 0:00:11]} Kc7 {[%emt 0:00:42]} 24. Nxe5 {[%emt 0:04:52]} fxe5 {[%emt 0:00:08]} 25. Bxe5+ {[%emt 0:00:42]} Kd8 {[%emt 0:01:16]} 26. Rg3 {[%emt 0:02:10]} Bf8 {[%emt 0:01:01]} 27. Rf3 {[%emt 0:03:03]} Qb5+ {[%emt 0:00:45]} 28. Ka2 {[%emt 0:00:21]} Qc5 {[%emt 0:00:07]} 29. Qf6+ {[%emt 0:00:41]} Qe7 {[%emt 0:00:29]} 30. Qxf8+ {[%emt 0:00:13]} Qxf8 {[%emt 0:00:01]} 31. Rxf8+ {[%emt 0:00:07]} Ke7 {[%emt 0:00:02]} 32. Bd6+ {[%emt 0:00:27]} Ke6 {[%emt 0:00:03]} 33. Rh8 {[%emt 0:00:38]} Nf6 {[%emt 0:00:06]} 34. Bb4 {[%emt 0:00:24]} a5 {[%emt 0:00:04]} 35. Bc3 {[%emt 0:00:33]} Nd5 {[%emt 0:00:19]} 36. Kb2 {[%emt 0:00:33]} Nb6 {[%emt 0:00:58]} 37. Rdd8 {[%emt 0:01:22]} Na4+ {[%emt 0:00:23]} 38. Kb3 {[%emt 0:00:24]} 1-0

[Event "Fagernes GM-A 2019"]
[Site "Fagernes"]
[Date "2019.04.18"]
[Round "1"]
[White "Lillevold, Frode"]
[Black "Mihajlov, Sebastian"]
[Result "0-1"]
[ECO "E82"]
[WhiteElo "2076"]
[BlackElo "2361"]
[Annotator "NA"]
[PlyCount "66"]
[EventDate "2019.04.14"]
[EventType "tourn"]
[EventCountry "NOR"]
[SourceTitle "playchess.com"]
[Source "ChessBase"]
[SourceQuality "1"]
[TimeControl "40/7200:3600"]

1. d4 {[%emt 0:00:03]} Nf6 {[%emt 0:08:03]} 2. c4 {[%emt 0:00:02]} g6 {[%emt 0:00:08]} 3. Nc3 {[%emt 0:00:16]} Bg7 {[%emt 0:00:06]} 4. e4 {[%emt 0:00:07]} d6 {[%emt 0:00:04]} 5. f3 {[%emt 0:01:08]} O-O {[%emt 0:00:12]} 6. Be3 {[%emt 0:00:27]} b6 {[%emt 0:01:39]} 7. Qd2 {[%emt 0:03:27]} c5 {[%emt 0:01:06]} 8. d5 {[%emt 0:01:49]} e6 {[%emt 0:00:05]} 9. Nge2 {[%emt 0:00:32]} exd5 {[%emt 0:01:50]} 10. cxd5 {[%emt 0:00:35]} Ba6 {[%emt 0:02:08]} 11. Ng3 {[%emt 0:14:47]} Bxf1 {[%emt 0:00:55]} 12. Kxf1 {[%emt 0:02:21]} Nbd7 {[%emt 0:19:52]} 13. Bh6 {[%emt 0:07:54]} Kh8 {[%emt 0:06:10]} 14. h4 {[%emt 0:05:49]} Bxh6 {[%emt 0:02:26]} 15. Qxh6 {[%emt 0:00:28]} Ng8 {[%emt 0:00:03]} 16. Qf4 {[%emt 0:05:13]} Ne5 {[%emt 0:00:57]} 17. Nd1 {[%emt 0:10:36]} h5 {[%emt 0:07:22]} 18. Nf2 {[%emt 0:11:05]} b5 {[%emt 0:09:04]} 19. Kg1 {[%emt 0:11:47]} a5 {[%emt 0:07:37]} 20. Qd2 {[%emt 0:04:03]} Qf6 {[%emt 0:00:41]} 21. Qg5 {[%emt 0:14:25]} Qg7 {[%emt 0:04:34]} 22. Re1 {[%emt 0:05:34]} Rae8 {[%emt 0:02:43]} 23. f4 {[%emt 0:08:35]} Nd7 {[%emt 0:01:38]} 24. e5 {[%emt 0:04:20]} f6 {[%emt 0:00:35]} 25. Nxh5 {[%emt 0:01:16]} fxg5 {[%emt 0:00:06]} 26. Nxg7 {[%emt 0:00:11]} Kxg7 {[%emt 0:00:03]} 27. e6 {[%emt 0:00:42]} Nb6 {[%emt 0:01:06]} 28. Ne4 {[%emt 0:01:42]} Nxd5 {[%emt 0:00:07]} 29. Nxd6 {[%emt 0:00:03]} Re7 {[%emt 0:00:14]} 30. Nxb5 {[%emt 0:00:03]} Nxf4 {[%emt 0:00:08]} 31. Re5 {[%emt 0:00:28]} Nxe6 {[%emt 0:00:18]} 32. hxg5 {[%emt 0:00:01]} Nf4 {[%emt 0:00:34]} 33. Rxe7+ {[%emt 0:00:02]} Nxe7 {[%emt 0:00:07]} 0-1

[Event "Fagernes GM-A 2019"]
[Site "Fagernes"]
[Date "2019.04.18"]
[Round "1"]
[White "Holleland, Sigve"]
[Black "Gullaksen, Eirik"]
[Result "1/2-1/2"]
[ECO "A45"]
[WhiteElo "2024"]
[BlackElo "2324"]
[Annotator "NA"]
[PlyCount "57"]
[EventDate "2019.04.14"]
[EventType "tourn"]
[EventCountry "NOR"]
[SourceTitle "playchess.com"]
[Source "ChessBase"]
[SourceQuality "1"]
[TimeControl "40/7200:3600"]

1. d4 {[%emt 0:04:23]} Nf6 {[%emt 0:00:23]} 2. Bf4 {[%emt 0:00:27]} g6 {[%emt 0:00:12]} 3. Nc3 {[%emt 0:00:08]} d5 {[%emt 0:00:08]} 4. e3 {[%emt 0:01:32]} Bg7 {[%emt 0:01:39]} 5. h4 {[%emt 0:04:09]} h5 {[%emt 0:02:03]} 6. Nf3 {[%emt 0:01:18]} Bf5 {[%emt 0:04:41]} 7. Be2 {[%emt 0:02:33]} c6 {[%emt 0:07:26]} 8. Qd2 {[%emt 0:01:32]} Nbd7 {[%emt 0:00:45]} 9. Ne5 {[%emt 0:00:14]} Ng4 {[%emt 0:14:53]} 10. Nxg4 {[%emt 0:05:21]} hxg4 {[%emt 0:01:03]} 11. O-O-O {[%emt 0:09:23]} e5 {[%emt 0:07:20]} 12. dxe5 {[%emt 0:00:34]} Qe7 {[%emt 0:04:20]} 13. f3 {[%emt 0:07:24]} gxf3 {[%emt 0:13:55]} 14. gxf3 {[%emt 0:00:33]} Nxe5 {[%emt 0:06:07]} 15. e4 {[%emt 0:02:00]} dxe4 {[%emt 0:00:35]} 16. Bg5 {[%emt 0:07:43]} f6 {[%emt 0:03:38]} 17. fxe4 {[%emt 0:01:01]} Bg4 {[%emt 0:10:33]} 18. Bf4 {[%emt 0:04:35]} Bxe2 {[%emt 0:02:09]} 19. Nxe2 {[%emt 0:02:55]} Rd8 {[%emt 0:04:25]} 20. Qa5 {[%emt 0:11:13]} Rxd1+ {[%emt 0:00:56]} 21. Rxd1 {[%emt 0:00:08]} Rxh4 {[%emt 0:01:46]} 22. Qxa7 {[%emt 0:05:55]} Bh6 {[%emt 0:00:40]} 23. Bxh6 {[%emt 0:06:00]} Rxh6 {[%emt 0:00:08]} 24. Qe3 {[%emt 0:02:32]} Qh7 {[%emt 0:02:05]} 25. Qb6 {[%emt 0:04:55]} Qe7 {[%emt 0:00:09]} 26. Qb3 {[%emt 0:02:16]} Qf7 {[%emt 0:02:33]} 27. Qb6 {[%emt 0:02:23]} Qe7 {[%emt 0:00:12]} 28. Qb3 {[%emt 0:01:22]} Qf7 {[%emt 0:02:05]} 29. Qb6 {[%emt 0:01:50]} 1/2-1/2

[Event "Fagernes GM-A 2019"]
[Site "Fagernes"]
[Date "2019.04.18"]
[Round "1"]
[White "Fuglestein, Sander"]
[Black "Hobber, Anders"]
[Result "0-1"]
[ECO "D13"]
[WhiteElo "2000"]
[BlackElo "2295"]
[Annotator "NA"]
[PlyCount "104"]
[EventDate "2019.04.14"]
[EventType "tourn"]
[EventCountry "NOR"]
[SourceTitle "playchess.com"]
[Source "ChessBase"]
[SourceQuality "1"]
[TimeControl "40/7200:3600"]

1. d4 {[%emt 0:00:02]} d5 {[%emt 0:00:03]} 2. c4 {[%emt 0:00:05]} c6 {[%emt 0:00:12]} 3. cxd5 {[%emt 0:00:13]} cxd5 {[%emt 0:00:05]} 4. Nf3 {[%emt 0:00:19]} Nf6 {[%emt 0:00:40]} 5. Nc3 {[%emt 0:00:15]} Nc6 {[%emt 0:00:08]} 6. Bf4 {[%emt 0:00:19]} e6 {[%emt 0:04:46]} 7. e3 {[%emt 0:01:54]} Be7 {[%emt 0:01:48]} 8. Bd3 {[%emt 0:03:55]} Nh5 {[%emt 0:03:56]} 9. Bg3 {[%emt 0:02:08]} O-O {[%emt 0:04:37]} 10. Qe2 {[%emt 0:06:04]} Bd7 {[%emt 0:09:01]} 11. a3 {[%emt 0:08:10]} Rc8 {[%emt 0:04:01]} 12. Ne5 {[%emt 0:09:59]} g6 {[%emt 0:04:09]} 13. Nxc6 {[%emt 0:10:47]} bxc6 {[%emt 0:11:41]} 14. Ba6 {[%emt 0:03:21]} Nxg3 {[%emt 0:03:29]} 15. hxg3 {[%emt 0:00:29]} Rb8 {[%emt 0:00:30]} 16. b4 {[%emt 0:03:37]} Bf6 {[%emt 0:10:35]} 17. Rc1 {[%emt 0:09:02]} e5 {[%emt 0:02:41]} 18. dxe5 {[%emt 0:03:00]} Bxe5 {[%emt 0:00:04]} 19. Na4 {[%emt 0:03:21]} h5 {[%emt 0:08:38]} 20. Nc5 {[%emt 0:04:48]} Bg4 {[%emt 0:01:56]} 21. Qd2 {[%emt 0:01:46]} Re8 {[%emt 0:07:32]} 22. Be2 {[%emt 0:12:42]} Bf5 {[%emt 0:06:39]} 23. Nd3 {[%emt 0:04:37]} Bg7 {[%emt 0:02:20]} 24. Nf4 {[%emt 0:06:26]} d4 {[%emt 0:02:57]} 25. exd4 {[%emt 0:01:53]} Bxd4 {[%emt 0:07:40]} 26. Rd1 {[%emt 0:02:30]} c5 {[%emt 0:00:58]} 27. O-O {[%emt 0:01:47]} Qf6 {[%emt 0:02:50]} 28. Bc4 {[%emt 0:03:39]} Rbd8 {[%emt 0:03:37]} 29. Rfe1 {[%emt 0:04:00]} Be4 {[%emt 0:02:27]} 30. Qa2 {[%emt 0:03:23]} h4 {[%emt 0:00:19]} 31. Qb3 {[%emt 0:01:32]} Kg7 {[%emt 0:02:56]} 32. Nh3 {[%emt 0:01:08]} Bf5 {[%emt 0:01:15]} 33. Qf3 {[%emt 0:00:48]} Bxh3 {[%emt 0:00:23]} 34. Qxf6+ {[%emt 0:00:34]} Kxf6 {[%emt 0:00:07]} 35. Rxe8 {[%emt 0:00:38]} Rxe8 {[%emt 0:00:03]} 36. gxh3 {[%emt 0:00:04]} hxg3 {[%emt 0:00:28]} 37. bxc5 {[%emt 0:00:16]} gxf2+ {[%emt 0:01:19]} 38. Kg2 {[%emt 0:00:01]} Bxc5 {[%emt 0:00:40]} 39. Rd7 {[%emt 0:00:19]} Re1 {[%emt 0:01:39]} 40. Rxf7+ {[%emt 0:00:05]} Kg5 {[%emt 0:00:07]} 41. h4+ {[%emt 0:00:04]} Kxh4 {[%emt 0:00:30]} 42. Bf1 {[%emt 0:05:19]} Re4 {[%emt 0:03:32]} 43. Rh7+ {[%emt 0:01:46]} Kg5 {[%emt 0:00:43]} 44. Rh3 {[%emt 0:00:50]} Rg4+ {[%emt 0:02:05]} 45. Rg3 {[%emt 0:02:45]} Rxg3+ {[%emt 0:00:08]} 46. Kxg3 {[%emt 0:00:02]} Bxa3 {[%emt 0:00:05]} 47. Kxf2 {[%emt 0:00:13]} Kf4 {[%emt 0:00:23]} 48. Bd3 {[%emt 0:00:06]} g5 {[%emt 0:00:06]} 49. Ba6 {[%emt 0:00:10]} g4 {[%emt 0:00:12]} 50. Bb7 {[%emt 0:00:12]} a5 {[%emt 0:00:20]} 51. Bc6 {[%emt 0:00:04]} Bc5+ {[%emt 0:00:46]} 52. Ke2 {[%emt 0:00:36]} g3 {[%emt 0:00:37]} 0-1

[Event "Fagernes GM-A 2019"]
[Site "Fagernes"]
[Date "2019.04.18"]
[Round "1"]
[White "Gronnestad, Anita"]
[Black "Sisatto, Olli"]
[Result "0-1"]
[ECO "E06"]
[WhiteElo "1954"]
[BlackElo "2276"]
[Annotator "NA"]
[PlyCount "70"]
[EventDate "2019.04.14"]
[EventType "tourn"]
[EventCountry "NOR"]
[SourceTitle "playchess.com"]
[Source "ChessBase"]
[SourceQuality "1"]
[TimeControl "40/7200:3600"]

1. c4 {[%emt 0:00:09]} e6 {[%emt 0:00:30]} 2. d4 {[%emt 0:00:22]} Nf6 {[%emt 0:00:26]} 3. g3 {[%emt 0:00:34]} d5 {[%emt 0:00:44]} 4. Bg2 {[%emt 0:00:24]} c5 {[%emt 0:00:47]} 5. Nf3 {[%emt 0:01:47]} Nc6 {[%emt 0:00:46]} 6. O-O {[%emt 0:01:14]} Be7 {[%emt 0:00:32]} 7. cxd5 {[%emt 0:04:29]} Nxd5 {[%emt 0:01:14]} 8. dxc5 {[%emt 0:06:17]} Bxc5 {[%emt 0:00:28]} 9. Qc2 {[%emt 0:01:07]} Be7 {[%emt 0:03:46]} 10. a3 {[%emt 0:05:01]} O-O {[%emt 0:02:03]} 11. Rd1 {[%emt 0:05:29]} Bd7 {[%emt 0:05:21]} 12. e4 {[%emt 0:02:45]} Nb6 {[%emt 0:03:29]} 13. Nc3 {[%emt 0:03:19]} Rc8 {[%emt 0:00:53]} 14. h4 {[%emt 0:24:17]} e5 15. Qe2 {[%emt 1:02:46]} Qe8 {[%emt 0:16:06]} 16. Nd5 {[%emt 0:00:00]} Bg4 {[%emt 0:10:20]} 17. Be3 {[%emt 0:00:00]} Bd8 {[%emt 0:17:22]} 18. Bc5 {[%emt 0:00:00]} Nd4 {[%emt 0:05:59]} 19. Bxd4 {[%emt 0:00:00]} exd4 {[%emt 0:00:44]} 20. Rxd4 {[%emt 0:00:00]} Nxd5 {[%emt 0:00:49]} 21. Rxd5 {[%emt 0:00:00]} f5 {[%emt 0:01:16]} 22. e5 {[%emt 0:00:00]} f4 {[%emt 0:05:02]} 23. Rf1 {[%emt 0:00:00]} Bb6 {[%emt 0:04:46]} 24. Kh1 {[%emt 0:00:00]} Qh5 {[%emt 0:36:37]} 25. Qd3 {[%emt 0:00:00]} fxg3 {[%emt 0:00:00]} 26. fxg3 {[%emt 0:00:00]} Bf5 {[%emt 0:00:00]} 27. Qd2 {[%emt 0:00:00]} Be4 {[%emt 0:00:00]} 28. Rd3 {[%emt 0:00:00]} Qg6 {[%emt 0:00:00]} 29. Rd6 {[%emt 0:00:00]} Qxg3 {[%emt 0:00:00]} 30. Qg5 {[%emt 0:00:00]} Rxf3 {[%emt 0:00:00]} 31. Qxg3 {[%emt 0:00:00]} Rxf1+ {[%emt 0:00:00]} 32. Kh2 {[%emt 0:00:00]} Bg1+ {[%emt 0:00:00]} 33. Kh1 {[%emt 0:00:00]} Bf2+ {[%emt 0:00:00]} 34. Kh2 {[%emt 0:00:00]} Bxg3+ {[%emt 0:00:00]} 35. Kxg3 {[%emt 0:00:00]} Rg1 {[%emt 0:00:00]} 0-1